{"text_format":"3","workbook":"xlsx","n_sheets":4,"sheets":["Sąmatos forma","Diagramos duomenys","Išlaidų išklotinė","Sąmatos kainos suvestinė"],"not_rendered":{"charts":1,"images":2,"defined_names":11},"read":"whole","date_system":"1900"}

{"sheet":"Sąmatos forma","index":0,"n_rows":21,"n_cols":6,"rows_kept":21,"merged":[[0,1,0,4],[1,1,1,2],[7,1,8,1],[7,2,8,2],[10,1,10,5],[12,1,12,5],[14,1,14,5],[15,1,15,2],[15,4,15,5],[16,1,16,2],[16,4,16,5],[18,1,18,5],[19,1,19,2],[19,4,19,5],[20,1,20,2],[20,4,20,5]]}
[null,"Statybų sąmatos forma"]
[null,"Informacija apie savininką",null,null,"Informacija apie rangovą"]
[null,"Pavadinimas","Šiame langelyje įrašykite savininko vardą ir pavardę",null,"Įmonė","Šiame langelyje įrašykite rangovo įmonės pavadinimą"]
[null,"Adresas","Šiame langelyje įrašykite savininko adresą",null,"Pavadinimas","Šiame langelyje įrašykite rangovo vardą ir pavardę"]
[null,"Miestas, pašto kodas","Šiame langelyje įrašykite savininko miestą, pašto indeksą, valstybę",null,"Adresas","Šiame langelyje įrašykite rangovo adresą"]
[null,"Telefonas","Šiame langelyje įrašykite savininko telefono numerį",null,"Miestas, pašto kodas","Šiame langelyje įrašykite rangovo miestą, pašto kodą ir valstybę"]
[null,"El. paštas","Šiame langelyje įrašykite savininko el. pašto adresą",null,"Telefonas","Šiame langelyje įrašykite rangovo telefono numerį"]
[null,"Projekto pavadinimas","Šiame langelyje įrašykite projekto pavadinimą",null,"El. paštas","Šiame langelyje įrašykite rangovo el. pašto adresą "]
[{"$nulls":4},"Baigimo data","Šiame langelyje įrašykite baigimo datą"]
[null,"Darbo aprėptis"]
[null,"Čia įrašoma projekto darbo aprėptis. Įrašykite visas norimas specifikacijas. \n\nTeksto pavyzdys: Tai bus bandomasis projektas, kurio metu bus statomi dideli laiptai. Karkasui pastatyti naudosime tik 2 x 4 ir 2 x 8 dydžio rąstus ir sijų laikiklius. Laiptai bus išpjauti iš 2 x 4 dydžio medžiagos. Bus naudojami ne mažiau kaip 2 colių varžtai.  Visos vinys bus ne mažiau kaip 10 pensų. Vieno laipto pakopos dizaino svoris turi būti mažiausiai 500 svarų. Laiptai bus lygūs namo lygiui. Prie namo bus pritaisyta pakopa. Rangovas atliks valymą."]
[null,"Neįtraukta"]
[null,"Čia pateikiama projekto informacija, kuri nėra įtraukta. Įrašykite viską, kas neįtraukta į šią sąmatą. \n\nTeksto pavyzdys: Turėklai nebus įrengti. Pagrindą iš anksto turės paruošti savininkas. Laiptus turės nudažyti savininkas."]
[null,"Įmonės pasiūlymas"]
[null,"Įmonės pasiūlymas pateikiamas čia. Pateikite pasiūlymo apžvalgą, nurodydami, kas siūlo darbą, kokia numatyta baigimo data ir pasiūlymo suma.\n\nTeksto pavyzdys: Mes, įmonės pavadinimas, siūlome pirmiau nurodytą darbo aprėptį, kuri bus atlikta už bendros sumos sumą iki baigimo datos."]
[]
[null,"Pateikė (įmonės atstovas)",null,null,"Data"]
[null,"Savininko sutikimas"]
[null,"Čia įrašomas savininko sutikimas. Įrašykite savininko vardą ir pavardę patvirtinimo pareiškime, kuriame yra baigimo data ir bendra suma, nurodyta įmonės pasiūlyme. \n\nTeksto pavyzdys: Aš, savininko vardas ir pavardė, priimu pirmiau nurodytą darbo aprėptį, kurią siūloma atlikti už bendros sumos sumą iki baigimo datos."]
[]
[null,"Pateikė (namo savininkas arba įgaliotasis atstovas)",null,null,"Data"]

{"sheet":"Diagramos duomenys","index":1,"n_rows":7,"n_cols":3,"rows_kept":7,"hidden":true}
[]
[null,null,"Iš viso"]
[null,{"$f":"INDEX(SąmatosElementai[#Data],MATCH(1,SąmatosElementai[Klasifikuoti mokesčiai],0),2)","v":"Darbininkų užmokestis"},{"$f":"INDEX(SąmatosElementai[#Data],MATCH(1,SąmatosElementai[Klasifikuoti mokesčiai],0),4)","v":200}]
[null,{"$f":"INDEX(SąmatosElementai[#Data],MATCH(2,SąmatosElementai[Klasifikuoti mokesčiai],0),2)","v":"2 x 4 x 10 dydžio rąstai"},{"$f":"INDEX(SąmatosElementai[#Data],MATCH(2,SąmatosElementai[Klasifikuoti mokesčiai],0),4)","v":99.39999999999999}]
[null,{"$f":"INDEX(SąmatosElementai[#Data],MATCH(3,SąmatosElementai[Klasifikuoti mokesčiai],0),2)","v":"Sijų laikikliai"},{"$f":"INDEX(SąmatosElementai[#Data],MATCH(3,SąmatosElementai[Klasifikuoti mokesčiai],0),4)","v":74.7}]
[null,{"$f":"INDEX(SąmatosElementai[#Data],MATCH(4,SąmatosElementai[Klasifikuoti mokesčiai],0),2)","v":"2 x 8 x 10 dydžio rąstai"},{"$f":"INDEX(SąmatosElementai[#Data],MATCH(4,SąmatosElementai[Klasifikuoti mokesčiai],0),4)","v":33.75}]
[null,{"$f":"INDEX(SąmatosElementai[#Data],MATCH(5,SąmatosElementai[Klasifikuoti mokesčiai],0),2)","v":"Pirštinių pora, odinių"},{"$f":"INDEX(SąmatosElementai[#Data],MATCH(5,SąmatosElementai[Klasifikuoti mokesčiai],0),4)","v":15.5}]

{"sheet":"Išlaidų išklotinė","index":2,"n_rows":14,"n_cols":6,"rows_kept":14,"merged":[[0,1,0,4],[1,1,1,4]]}
[null,"Išlaidų išklotinė",{"$nulls":3}," "]
[null,"Medžiagų ir išlaidų sąrašas"]
[null,"Kiekis","Aprašas","Kaina","Iš viso","Klasifikuoti mokesčiai"]
[null,5,"2 x 8 x 10 dydžio rąstai",{"v":6.75,"d":"6.75 EUR"},{"$f":"IFERROR(SąmatosElementai[[#This Row],[Kaina]]*SąmatosElementai[[#This Row],[Kiekis]], \"\")","v":{"v":33.75,"d":"33.75 EUR"}},{"$f":"_xlfn.RANK.EQ(SąmatosElementai[[#This Row],[Iš viso]],SąmatosElementai[Iš viso])","v":4}]
[null,20,"2 x 4 x 10 dydžio rąstai",{"v":4.97,"d":"4.97 EUR"},{"$f":"IFERROR(SąmatosElementai[[#This Row],[Kaina]]*SąmatosElementai[[#This Row],[Kiekis]], \"\")","v":{"v":99.39999999999999,"d":"99.40 EUR"}},{"$f":"_xlfn.RANK.EQ(SąmatosElementai[[#This Row],[Iš viso]],SąmatosElementai[Iš viso])","v":2}]
[null,30,"Sijų laikikliai",{"v":2.49,"d":"2.49 EUR"},{"$f":"IFERROR(SąmatosElementai[[#This Row],[Kaina]]*SąmatosElementai[[#This Row],[Kiekis]], \"\")","v":{"v":74.7,"d":"74.70 EUR"}},{"$f":"_xlfn.RANK.EQ(SąmatosElementai[[#This Row],[Iš viso]],SąmatosElementai[Iš viso])","v":3}]
[null,2,"Varžtų dėžutė, 2 colių",{"v":6.67,"d":"6.67 EUR"},{"$f":"IFERROR(SąmatosElementai[[#This Row],[Kaina]]*SąmatosElementai[[#This Row],[Kiekis]], \"\")","v":{"v":13.34,"d":"13.34 EUR"}},{"$f":"_xlfn.RANK.EQ(SąmatosElementai[[#This Row],[Iš viso]],SąmatosElementai[Iš viso])","v":6}]
[null,2,"Vinių dėžutė, 10 pensų",{"v":3.25,"d":"3.25 EUR"},{"$f":"IFERROR(SąmatosElementai[[#This Row],[Kaina]]*SąmatosElementai[[#This Row],[Kiekis]], \"\")","v":{"v":6.5,"d":"6.50 EUR"}},{"$f":"_xlfn.RANK.EQ(SąmatosElementai[[#This Row],[Iš viso]],SąmatosElementai[Iš viso])","v":7}]
[null,2,"Pirštinių pora, odinių",{"v":7.75,"d":"7.75 EUR"},{"$f":"IFERROR(SąmatosElementai[[#This Row],[Kaina]]*SąmatosElementai[[#This Row],[Kiekis]], \"\")","v":{"v":15.5,"d":"15.50 EUR"}},{"$f":"_xlfn.RANK.EQ(SąmatosElementai[[#This Row],[Iš viso]],SąmatosElementai[Iš viso])","v":5}]
[null,2,"Darbininkų užmokestis",{"v":100,"d":"100.00 EUR"},{"$f":"IFERROR(SąmatosElementai[[#This Row],[Kaina]]*SąmatosElementai[[#This Row],[Kiekis]], \"\")","v":{"v":200,"d":"200.00 EUR"}},{"$f":"_xlfn.RANK.EQ(SąmatosElementai[[#This Row],[Iš viso]],SąmatosElementai[Iš viso])","v":1}]
[4,null,null,"Tarpinė suma",{"$f":"SUBTOTAL(109,SąmatosElementai[Iš viso])","v":{"v":443.18999999999994,"d":"443.19 EUR"}}]
[5,null,null,"Mokesčio tarifas",{"v":0.075,"d":"7.50%"}]
[{"$nulls":3},"Mokestis",{"$f":"IFERROR(MokesčioTarifas*SąmatosElementai[[#Totals],[Iš viso]], \"\")","v":{"v":33.23924999999999,"d":"33.24 EUR"}}]
[{"$nulls":3},"Bendroji suma",{"$f":"IFERROR(Mokestis+SąmatosElementai[[#Totals],[Iš viso]], \"\")","v":{"v":476.4292499999999,"d":"476.43 EUR"}}]

{"sheet":"Sąmatos kainos suvestinė","index":3,"n_rows":3,"n_cols":4,"rows_kept":3}
[null,"Sąmatos kainos suvestinė"]
[null,"Medžiagų ir išlaidų išklotinė",null,"Pastabos"]
[null,"Skritulinė diagrama, kurioje rodomos 5 didžiausios kiekvienos medžiagos išlaidos. Duomenys pagrįsti sąmatos elementų lentele išlaidų išklotinės darbalapyje",null,"Šiame langelyje įrašykite pastabas."]